fUST/lending_fUST_20250525
["ID","MTS","AMOUNT","RATE_DAILY","PERIOD"]
[362293840,1748166064827,313.97,0.00013646,2]
[362293841,1748166065228,470.96,0.00014266,2]
[362293842,1748166065647,627.94,0.00014886,2]
[362293843,1748166066068,784.93,0.00015506,2]
[362293844,1748166067162,5000.0,0.00016,2]
[362293845,1748166083649,1889.74309818,0.00016,2]
[362293846,1748166083674,3110.25690182,0.00016,2]
[362293847,1748166098997,5000.0,0.00016,2]
[362293848,1748166115049,5000.0,0.00016,2]
[362293849,1748166130405,2244.31709818,0.00016,2]
[362293850,1748166137998,-152.00925092,0.00013012,2]
[362293851,1748166143789,-295.14074908,0.00013012,2]
[362293852,1748166143813,-4.85925092,0.00013632,2]
[362293853,1748166145097,-165.67352884,0.00013632,2]
[362293854,1748166147011,-723.75722024,0.00013632,2]
[362293855,1748166147035,-36.36920716,0.00014251,2]
[362293856,1748166149085,-154.24555546,0.00014251,2]
[362293857,1748166151305,-390.00461032,0.00014251,2]
[362293858,1748166154019,-391.54639994,0.00014251,2]
[362293859,1748166156441,-176.75339351,0.00014251,2]
[362293860,1748166159054,-163.54599551,0.00014251,2]
[362293861,1748166161132,-28.9748381,0.00014251,2]
[362293862,1748166195624,-165.38,0.00013699,2]
[362293863,1748166195647,-165.38,0.00013699,2]
[362293864,1748166195669,-16.9,0.00013699,2]
[362293865,1748166197661,-148.49005937,0.00013699,2]
[362293866,1748166197686,-26.24510253,0.00013699,2]
[362293867,1748166200926,-154.60661659,0.00013699,2]
[362293869,1748166202364,-154.60661659,0.00013699,2]
[362293870,1748166204369,-154.60661659,0.00013699,2]
[362293871,1748166205981,-154.60661659,0.00013699,2]
[362293872,1748166208544,-154.60661659,0.00013699,2]
[362293873,1748166210521,-154.60661659,0.00013699,2]
[362293874,1748166214198,-158.09030046,0.00012479,2]
[362293875,1748166216799,-255.08,0.00012479,2]
[362293876,1748166219846,-10.39969954,0.00012479,2]
[362293877,1748166219868,-253.96030046,0.00013073,2]
[362293878,1748166221354,-161.0,0.00013073,2]
[362293879,1748166224478,-192.74847749,0.00013073,2]
[362293880,1748166226471,-155.25152251,0.00013073,2]
[362293881,1748166229139,-84.18969954,0.00013073,2]
[362293882,1748166229163,-108.55877795,0.00013667,2]
[362293883,1748166231673,-209.98214085,0.00013667,2]
[362293884,1748166236545,-416.50137188,0.00013667,2]
[362293885,1748166238571,-462.16969954,0.00013667,2]
[362293886,1748166241196,-73.50800978,0.00013667,2]
[362293887,1748166241228,-47.94774193,0.00013699,2]
[362293890,1748166285574,-410.11,0.00012499,2]
[362293891,1748166317971,-706.16424829,0.00012964,2]
[362293892,1748166319561,-340.74030046,0.00012964,2]
[362293893,1748166321046,-3953.09545125,0.00012964,2]
[362293894,1748166321068,-548.90454875,0.00013095,2]
[362293895,1748166322806,-162.22030046,0.00013095,2]
[362293896,1748166325537,-109.09515079,0.00013095,2]
[362293897,1748166325561,-1016.58793127,0.0001369,2]
[362293898,1748166328267,-192.96784787,0.0001369,2]
[362293899,1748166329836,-20.77422086,0.0001369,2]
[362293901,1748166357629,-313.20854302,0.000125,2]
[362293902,1748166362635,-83.81145698,0.000125,2]
[362293903,1748166362659,-549.29450654,0.00013095,2]
[362293904,1748166365368,-204.447257,0.00013095,2]
[362293905,1748166368875,-40.29823646,0.00013095,2]
[362293906,1748166368898,-146.12338495,0.00013691,2]
[362293907,1748166370632,-210.27881232,0.00013691,2]
[362293908,1748166373239,-273.52668646,0.00013691,2]
[362293909,1748166378173,-210.90385956,0.00013691,2]
[362293910,1748166381467,-254.21037318,0.00013691,2]
[362293911,1748166383576,-96.00688353,0.00013691,2]
[362293912,1748166402513,155.82654709,6.8e-07,2]
[362293913,1748166402616,155.82654709,6.8e-07,2]
[362293914,1748166402708,155.82654709,6.8e-07,2]
[362293915,1748166402834,155.82654709,6.8e-07,2]
[362293916,1748166402942,155.82654709,6.8e-07,2]
[362293917,1748166403058,155.82654709,6.8e-07,2]
[362293918,1748166403208,155.82654709,6.8e-07,2]
[362293919,1748166403403,155.82654709,6.8e-07,2]
[362293920,1748166430218,-162.34414434,0.00012501,2]
[362293921,1748166433374,-155.0,0.00012501,2]
[362293922,1748166436094,-36.36585566,0.00012501,2]
[362293923,1748166436231,-123.12048293,0.00013096,2]
[362293924,1748166438715,-369.22366141,0.00013096,2]
[362293930,1748166440335,-215.06585566,0.00013096,2]
[362293931,1748166440358,-226.38078674,0.00013691,2]
[362293932,1748166442899,-389.01657804,0.00013691,2]
[362293933,1748166444836,-243.21607462,0.00013691,2]
[362293934,1748166446438,-185.98937828,0.00013691,2]
[362293935,1748166450033,-16.51718232,0.00013691,2]
[362293936,1748166503317,-258.82654172,0.00012472,2]
[362293937,1748166507081,-65.90345828,0.00012472,2]
[362293938,1748166507105,-97.67603872,0.00013066,2]
[362293939,1748166509210,-158.147005,0.00013066,2]
[362293940,1748166511727,-159.807577,0.00013066,2]
[362293941,1748166515254,-154.39425402,0.00013066,2]
[362293942,1748166518480,-79.44512526,0.00013066,2]
[362293943,1748166518503,-77.33455734,0.0001366,2]
[362293944,1748166520494,-163.7790474,0.0001366,2]
[362293945,1748166523992,-167.34187856,0.00013523,2]
[362293946,1748166527617,-160.897277,0.00013523,2]
[362293947,1748166531113,-167.280632,0.00013523,2]
[362293948,1748166533108,-167.347726,0.00013523,2]
[362293949,1748166535814,-159.02402088,0.00013523,2]
[362293950,1748166538277,-179.90955412,0.00013523,2]
[362293951,1748166541845,-162.949857,0.00013523,2]
[362293952,1748166545638,-217.85701788,0.00013523,2]
[362293953,1748166550346,-160.306519,0.00013523,2]
[362293954,1748166552429,-160.306519,0.00013523,2]
[362293955,1748166553948,-160.306519,0.00013523,2]
[362293956,1748166556448,-154.44623644,0.00013523,2]
[362293957,1748166558974,-271.85810053,0.00013523,2]
[362293958,1748166562323,-267.62143175,0.00013523,2]
[362293959,1748166566317,-176.58046772,0.00013523,2]
[362293960,1748166568432,-672.55969954,0.00013523,2]
[362293961,1748166569919,-1113.00030046,0.00013523,2]
[362293962,1748166573748,-264.07,0.00013523,2]
[362293963,1748166575137,-158.44,0.00012469,2]
[362293964,1748166577391,-163.33083919,0.00012469,2]
[362293965,1748166578956,-6.10916081,0.00012469,2]
[362293966,1748166578979,-253.46366682,0.00013063,2]
[362293967,1748166581122,-263.22628436,0.00013063,2]
[362293968,1748166582668,-139.08004882,0.00013063,2]
[362293969,1748166582696,-33.50296703,0.00013523,2]
[362293970,1748166584756,-182.83327609,0.00013523,2]
[362293971,1748166595375,-155.60108244,0.0001352,2]
[362293972,1748166598603,-158.96908279,0.0001352,2]
[362293973,1748166600549,-169.047256,0.0001352,2]
[362293974,1748166605068,-208.35025752,0.0001352,2]
[362293975,1748166606874,-200.0,0.0001352,2]
[362293976,1748166610071,-162.77430179,0.0001352,2]
[362293977,1748166612046,-152.0,0.0001352,2]
[362293978,1748166614625,-241.80872783,0.0001352,2]
[362293979,1748166616740,-162.22875713,0.0001352,2]
[362293980,1748166619821,-200.06862657,0.0001352,2]
[362293981,1748166622433,-328.72610313,0.0001352,2]
[362293982,1748166623917,-380.70569851,0.0001352,2]
[362293983,1748166625363,-193.53855605,0.0001352,2]
[362293984,1748166626888,-308.03846108,0.0001352,2]
[362294044,1748166632962,-1978.14308916,0.0001352,2]
[362294046,1748166632972,-983.65,0.00013657,2]
[362294048,1748166632982,-1311.54,0.00014251,2]
[362294050,1748166632993,-601.1476907,0.00014821,2]
[362294052,1748166633002,-1639.42,0.00014844,2]
[362294054,1748166633012,-4202.0,0.00015,2]
[362294056,1748166633021,-300.0,0.00015437,2]
[362294058,1748166633032,-300.0,0.00015437,2]
[362294060,1748166633041,-1967.31,0.00015438,2]
[362294062,1748166633051,-300.0,0.00015474,2]
[362294064,1748166633061,-172.47048369,0.00015956,2]
[362294066,1748166633071,-818.55454123,0.00016,2]
[362294068,1748166633081,-1775.01654581,0.00016032,2]
[362294102,1748166638619,-520.17345419,0.00016032,2]
[362294104,1748166638629,-500.0,0.00016095,2]
[362294106,1748166638638,-221.47654582,0.00016095,2]
[362294108,1748166638650,-278.52345418,0.00016095,2]
[362294110,1748166638659,-221.47654582,0.00016095,2]
[362294113,1748166638670,-278.52345418,0.00016095,2]
[362294115,1748166638679,-500.0,0.00016095,2]
[362294117,1748166638688,-500.0,0.00016095,2]
[362294119,1748166638698,-500.0,0.00016095,2]
[362294121,1748166638707,-500.0,0.00016095,2]
[362294123,1748166638716,-500.0,0.00016095,2]
[362294125,1748166638725,-500.0,0.00016095,2]
[362294128,1748166638734,-500.0,0.00016095,2]
[362294130,1748166638743,-500.0,0.00016095,2]
[362294132,1748166638752,-500.0,0.00016095,2]
[362294134,1748166638766,-500.0,0.00016095,2]
[362294137,1748166638775,-500.0,0.00016095,2]
[362294139,1748166638785,-500.0,0.00016095,2]
[362294141,1748166638794,-500.0,0.00016095,2]
[362294143,1748166638804,-500.0,0.00016095,2]
[362294145,1748166638815,-500.0,0.00016095,2]
[362294147,1748166638824,-19.27655582,0.00016095,2]
[362294617,1748166643592,-5000.0,0.00015872,2]
[362294619,1748166643602,-480.72344418,0.00016095,2]
[362294621,1748166643612,-500.0,0.00016095,2]
[362294623,1748166643621,-500.0,0.00016095,2]
[362294625,1748166643631,-500.0,0.00016095,2]
[362294627,1748166643640,-500.0,0.00016095,2]
[362294629,1748166643650,-500.0,0.00016095,2]
[362294632,1748166643661,-500.0,0.00016095,2]
[362294634,1748166643670,-500.0,0.00016095,2]
[362294635,1748166643680,-500.0,0.00016095,2]
[362294638,1748166643692,-500.0,0.00016095,2]
[362294640,1748166643701,-500.0,0.00016095,2]
[362294643,1748166643710,-500.0,0.00016095,2]
[362294647,1748166643720,-500.0,0.00016095,2]
[362294650,1748166643730,-500.0,0.00016095,2]
[362294653,1748166643739,-500.0,0.00016095,2]
[362294656,1748166643748,-500.0,0.00016095,2]
[362294659,1748166643757,-500.0,0.00016095,2]
[362294662,1748166643766,-500.0,0.00016095,2]
[362294665,1748166643775,-500.0,0.00016095,2]
[362294668,1748166643784,-500.0,0.00016095,2]
[362294670,1748166643792,-500.0,0.00016095,2]
[362294672,1748166643801,-500.0,0.00016095,2]
[362294674,1748166643811,-500.0,0.00016095,2]
[362294676,1748166643820,-500.0,0.00016095,2]
[362294678,1748166643829,-500.0,0.00016095,2]
[362294680,1748166643839,-500.0,0.00016095,2]
[362294682,1748166643849,-500.0,0.00016095,2]
[362294684,1748166643858,-334.21182651,0.00016095,2]
[362294686,1748166643868,-500.0,0.00016095,2]
[362294688,1748166643877,-500.0,0.00016095,2]
[362294690,1748166643886,-500.0,0.00016095,2]
[362294692,1748166643895,-500.0,0.00016095,2]
[362294694,1748166643904,-498.59119971,0.00016095,2]
[362294971,1748166646713,-188.88,0.00013006,2]
[362294973,1748166646723,-377.76,0.00013625,2]
[362294975,1748166646733,-566.64,0.00014245,2]
[362294978,1748166646743,-755.52,0.00014864,2]
[362294980,1748166646752,-944.4,0.00015483,2]
[362294982,1748166646762,-1.40880029,0.00016095,2]
[362294983,1748166646771,-500.0,0.00016095,2]
[362294986,1748166646781,-500.0,0.00016095,2]
[362294987,1748166646790,-500.0,0.00016095,2]
[362294989,1748166646801,-500.0,0.00016095,2]
[362294991,1748166646810,-500.0,0.00016095,2]
[362294993,1748166646820,-500.0,0.00016095,2]
[362294995,1748166646830,-500.0,0.00016095,2]
[362294997,1748166646839,-6031.16924699,0.000161,2]
[362295000,1748166646851,-22575.53518189,0.000161,2]
[362295002,1748166646863,-526.97,0.000161,2]
[362295064,1748166647466,-0.00475968,0.000161,2]
[362295068,1748166647491,-3318.19665929,0.000161,2]
[362295070,1748166647501,-1133.28,0.00016103,2]
[362295072,1748166647510,-316.0,0.000162,2]
[362295074,1748166647520,-316.0,0.000162,2]
[362295076,1748166647529,-316.0,0.000162,2]
[362295077,1748166647538,-316.0,0.000162,2]
[362295079,1748166647547,-153.27290538,0.000162,2]
[362295081,1748166647557,-316.0,0.000162,2]
[362295083,1748166647567,-316.0,0.000162,2]
[362295084,1748166647576,-316.0,0.000162,2]
[362295085,1748166647586,-281.9442991,0.000162,2]
[362295215,1748166660450,200.0,0.00021917,30]
[362295216,1748166717054,-233.52,0.00012661,2]
[362295217,1748166717076,-28.24850416,0.00013237,2]
[362295218,1748166722500,-220.0,0.00013237,2]
[362295219,1748166724003,-102.04149584,0.00013237,2]
[362295220,1748166737946,-467.05,0.00013812,2]
[362295221,1748166771742,-583.81,0.00014388,2]
[362295222,1748166771766,-250.0,0.00014919,2]
[362295223,1748166771790,-700.57,0.00014963,2]
[362295224,1748166771813,-300.0,0.0001545,2]
[362295225,1748166771836,-6542.2972754,0.00015451,2]
[362295226,1748166771858,-1156.3227246,0.00015451,2]
[362295227,1748166788333,222.91,0.0001373,2]
[362295228,1748166838743,-297.21,0.00014327,2]
[362295229,1748166838770,-371.52,0.00014924,2]
[362295230,1748166842203,275.27,0.00015259,2]
[362295231,1748166858637,150.53,0.00013217,2]
[362295232,1748166859059,225.79,0.00013818,2]
[362295237,1748166930997,205.26,0.00013704,2]
[362295238,1748167002148,194.07,0.00013729,2]
[362295239,1748167075127,183.48,0.0001373,2]
[362295240,1748167149966,173.47,0.00013749,2]
[362295241,1748167217031,5000.0,0.00014,2]
[362295242,1748167220800,164.01,0.00013755,2]
[362295244,1748167258077,1132.519533,0.00013699,2]
[362295245,1748167293037,155.06,0.00013752,2]
[362295247,1748167422602,2564.297467,0.00014,2]
[362295248,1748167422625,2435.702533,0.00014,2]
[362295260,1748167814015,5000.0,0.00014,2]
[362295290,1748167831933,-5000.0,0.00014168,2]
[362295291,1748167831944,-195.47,0.00014311,2]
[362295292,1748167831954,-244.34,0.00014908,2]
[362295293,1748167831964,-1907.815517,0.0001504,2]
[362295294,1748167831974,-399.384575,0.0001507,2]
[362295295,1748167831984,-567.6252049,0.00015254,2]
[362295296,1748167831994,-500.0,0.00015259,2]
[362295297,1748167832003,-675.06178,0.00015451,2]
[362295298,1748167832013,-293.21,0.00015504,2]
[362295300,1748167832022,-157.79570363,0.00015899,2]
[362295302,1748167832031,-300.0,0.00015901,2]
[362295304,1748167832042,-300.0,0.00015901,2]
[362295306,1748167832051,-300.0,0.00015901,2]
[362295307,1748167832061,-206.38693549,0.00015905,2]
[362295308,1748167832073,-500.0,0.00015973,2]
[362295309,1748167832082,-500.81146006,0.00015973,2]
[362295310,1748167832091,-612.89,0.0001599,3]
[362295311,1748167832100,-306.44,0.0001599,3]
[362295312,1748167832109,-153.22,0.0001599,3]
[362295313,1748167832118,-459.7,0.0001599,3]
[362295314,1748167832128,-500.0,0.00015999,2]
[362295315,1748167832137,-500.0,0.00015999,2]
[362295316,1748167832146,-268.00195893,0.00015999,2]
[362295317,1748167832156,-205.98463327,0.00015999,2]
[362295318,1748167832165,-151.0,0.00015999,2]
[362295319,1748167832175,-500.0,0.00015999,2]
[362295320,1748167832184,-500.0,0.00015999,2]
[362295321,1748167832193,-500.0,0.00015999,2]
[362295322,1748167832203,-151.0,0.00015999,2]
[362295323,1748167832214,-225.32447424,0.00015999,2]
[362295324,1748167832225,-270.26763809,0.00015999,2]
[362295325,1748167832235,-500.0,0.00015999,2]
[362295326,1748167832244,-151.0,0.00015999,2]
[362295327,1748167832254,-151.0,0.00015999,2]
[362295328,1748167832263,-500.0,0.00015999,2]
[362295329,1748167832273,-151.0,0.00015999,2]
[362295330,1748167832285,-151.0,0.00015999,2]
[362295331,1748167832294,-151.0,0.00015999,2]
[362295332,1748167832304,-151.0,0.00015999,2]
[362295333,1748167832314,-151.0,0.00015999,2]
[362295334,1748167832323,-200.54422403,0.00015999,2]
[362295335,1748167832332,-151.0,0.00015999,2]
[362295336,1748167832342,-151.0,0.00015999,2]
[362295337,1748167832351,-151.0,0.00015999,2]
[362295338,1748167832361,-252.77939284,0.00015999,2]
[362295339,1748167832370,-151.0,0.00015999,2]
[362295340,1748167832380,-151.0,0.00015999,2]
[362295341,1748167832389,-151.58706203,0.00015999,2]
[362295342,1748167832398,-151.0,0.00015999,2]
[362295343,1748167832407,-246.3065041,0.00015999,2]
[362295344,1748167832418,-500.0,0.00015999,2]
[362295345,1748167832428,-468.0,0.00015999,2]
[362295346,1748167832438,-500.0,0.00015999,2]
[362295347,1748167832450,-500.0,0.00015999,2]
[362295348,1748167832460,-500.0,0.00015999,2]
[362295349,1748167832471,-500.0,0.00015999,2]
[362295350,1748167832480,-500.0,0.00015999,2]
[362295351,1748167832489,-151.0,0.00015999,2]
[362295352,1748167832498,-500.0,0.00015999,2]
[362295353,1748167832508,-151.0,0.00015999,2]
[362295354,1748167832517,-230.21085678,0.00015999,2]
[362295355,1748167832527,-500.0,0.00015999,2]
[362295356,1748167832537,-500.0,0.00015999,2]
[362295357,1748167832546,-151.0,0.00015999,2]
[362295358,1748167832557,-500.0,0.00015999,2]
[362295359,1748167832566,-500.0,0.00015999,2]
[362295360,1748167832576,-500.0,0.00015999,2]
[362295361,1748167832585,-466.16291239,0.00015999,2]
[362295362,1748167832595,-500.0,0.00015999,2]
[362295363,1748167832604,-500.0,0.00015999,2]
[362295364,1748167832613,-500.0,0.00015999,2]
[362295365,1748167832623,-500.0,0.00015999,2]
[362295366,1748167832634,-500.0,0.00015999,2]
[362295367,1748167832643,-500.0,0.00015999,2]
[362295368,1748167832653,-500.0,0.00015999,2]
[362295369,1748167832664,-500.0,0.00015999,2]
[362295370,1748167832674,-500.0,0.00015999,2]
[362295371,1748167832683,-500.0,0.00015999,2]
[362295372,1748167832694,-500.0,0.00015999,2]
[362295373,1748167832704,-500.0,0.00015999,2]
[362295374,1748167832714,-500.0,0.00015999,2]
[362295375,1748167832726,-500.0,0.00015999,2]
[362295376,1748167832736,-500.0,0.00015999,2]
[362295377,1748167832747,-500.0,0.00015999,2]
[362295378,1748167832757,-500.0,0.00015999,2]
[362295379,1748167832768,-500.0,0.00015999,2]
[362295380,1748167832778,-500.0,0.00015999,2]
[362295381,1748167832788,-500.0,0.00015999,2]
[362295382,1748167832797,-500.0,0.00015999,2]
[362295383,1748167832808,-500.0,0.00015999,2]
[362295384,1748167832817,-206.86724221,0.00015999,2]
[362295385,1748167832827,-500.0,0.00015999,2]
[362295386,1748167832836,-500.0,0.00015999,2]
[362295387,1748167832846,-500.0,0.00015999,2]
[362295388,1748167832855,-500.0,0.00015999,2]
[362295389,1748167832866,-500.0,0.00015999,2]
[362295390,1748167832875,-500.0,0.00015999,2]
[362295391,1748167832886,-500.0,0.00015999,2]
[362295392,1748167832900,-500.0,0.00015999,2]
[362295393,1748167832911,-500.0,0.00015999,2]
[362295394,1748167832922,-377.0307732,0.00015999,2]
[362295395,1748167832934,-500.0,0.00015999,2]
[362295396,1748167832944,-500.0,0.00015999,2]
[362295397,1748167832956,-500.0,0.00015999,2]
[362295398,1748167832968,-500.0,0.00015999,2]
[362295399,1748167832978,-500.0,0.00015999,2]
[362295400,1748167832988,-387.89130758,0.00015999,2]
[362295401,1748167832997,-500.0,0.00015999,2]
[362295402,1748167833007,-500.0,0.00015999,2]
[362295403,1748167833114,-500.0,0.00015999,2]
[362295404,1748167833123,-500.0,0.00015999,2]
[362295405,1748167833133,-500.0,0.00015999,2]
[362295406,1748167833143,-500.0,0.00015999,2]
[362295407,1748167833152,-500.0,0.00015999,2]
[362295408,1748167833161,-500.0,0.00015999,2]
[362295409,1748167833178,-500.0,0.00015999,2]
[362295410,1748167833193,-500.0,0.00015999,2]
[362295411,1748167833204,-500.0,0.00015999,2]
[362295412,1748167833214,-500.0,0.00015999,2]
[362295413,1748167833225,-625.53333373,0.00015999,2]
[362295414,1748167833235,-500.0,0.00015999,2]
[362295415,1748167833246,-171.95867094,0.00015999,2]
[362295416,1748167833256,-155.44467184,0.00015999,2]
[362295417,1748167833266,-161992.52228741,0.00016,2]
[362295418,1748167833499,-1347.32928884,0.00016,2]
[362295428,1748167837662,-300.0,0.00015999,2]
[362295429,1748167837674,-4684.69140695,0.00016,2]
[362295803,1748167844752,-14069.69823792,0.00016,2]
[362295804,1748167844764,-1000.0,0.00016,2]
[362295805,1748167844775,-1151.77277718,0.00016,2]
[362295846,1748168266651,1075.893556,0.00013699,2]
[362295847,1748168632556,2485.94394341,0.00024658,120]
[362295848,1748168668180,3440.0,0.00024658,120]
[362295849,1748168683495,1290.0,0.00024658,120]
[362295850,1748168715542,163.69071144,0.00013735,2]
[362295851,1748168721180,163.54599551,0.00013735,2]
[362295854,1748168783494,1999.61420405,0.00014,2]
[362295855,1748168783519,3000.38579595,0.00014,2]
[362295856,1748168799352,5000.0,0.00014,2]
[362295857,1748168814861,2838.06120405,0.00014,2]
[362295858,1748168814887,2161.93879595,0.00014,2]
[362295859,1748168830118,5000.0,0.00014,2]
[362295864,1748168837543,192.74847749,0.00013737,2]
[362295871,1748168894538,411.46588268,0.00010618,2]
[362295872,1748168896508,3072.29384388,0.000125,2]
[362295873,1748168896532,8208.93633949,0.000125,2]
[362295875,1748168907743,1708.25924912,0.00013,2]
[362295876,1748168920748,921.25141139,0.0001,2]
[362295877,1748168920770,78.74858861,0.0001,2]
[362295890,1748169032052,-300.0,0.00014341,2]
[362295891,1748169032061,-300.0,0.00014341,2]
[362295892,1748169032072,-225.1020984,0.00014341,2]
[362295893,1748169032108,-74.8979016,0.00014341,2]
[362295894,1748169032119,-300.0,0.00014341,2]
[362295895,1748169032132,-892.46350124,0.00014341,2]
[362295896,1748169032144,-307.53649876,0.00014341,2]
[362295897,1748169032155,-1318.82652817,0.00014342,2]
[362295898,1748169032169,-23581.17347183,0.00014342,2]
[362295899,1748169032178,-300.0,0.00014498,2]
[362295900,1748169032189,-6031.0,0.000145,2]
[362295901,1748169032199,-199.692288,0.00014855,2]
[362295902,1748169032208,-575.54699629,0.000149,2]
[362295903,1748169032218,-177.71,0.00014934,2]
[362295904,1748169032229,-385.78632816,0.00015,2]
[362295905,1748169032239,-1674.51645709,0.00015,2]
[362295906,1748169036531,2000.0,0.00021917,30]
[362295934,1748169037959,-5000.0,0.00014198,2]
[362295935,1748169037969,-500.0,0.00014999,2]
[362295936,1748169037979,-500.0,0.00014999,2]
[362295937,1748169037989,-500.0,0.00014999,2]
[362295938,1748169037999,-500.0,0.00014999,2]
[362295939,1748169038009,-500.0,0.00014999,2]
[362295940,1748169038021,-500.0,0.00014999,2]
[362295941,1748169038031,-500.0,0.00014999,2]
[362295942,1748169038041,-500.0,0.00014999,2]
[362295943,1748169038051,-500.0,0.00014999,2]
[362295944,1748169038061,-500.0,0.00014999,2]
[362295945,1748169038072,-224.52759657,0.00014999,2]
[362295946,1748169038081,-500.0,0.00014999,2]
[362295947,1748169038091,-500.0,0.00014999,2]
[362295948,1748169038101,-500.0,0.00014999,2]
[362295949,1748169038111,-500.0,0.00014999,2]
[362295950,1748169038121,-500.0,0.00014999,2]
[362295951,1748169038131,-500.0,0.00014999,2]
[362295952,1748169038140,-500.0,0.00014999,2]
[362295953,1748169038150,-10707.06527689,0.00015,2]
[362295954,1748169038159,-213.25,0.00015531,2]
[362295955,1748169038169,-420.0,0.00015706,2]
[362295956,1748169038178,-420.0,0.00015706,2]
[362295957,1748169038187,-251.23553649,0.00015748,2]
[362295958,1748169038197,-1200.0,0.00015775,2]
[362295959,1748169038207,-737.631467,0.00015876,2]
[362295960,1748169038216,-8366.08335678,0.00016,2]
[362295961,1748169038228,-3010.88555315,0.00016,2]
[362295962,1748169038243,-4047.26257935,0.00016,2]
[362295963,1748169038252,-316.0,0.00016,2]
[362295964,1748169038260,-316.0,0.00016,2]
[362295965,1748169038269,-316.0,0.00016,2]
[362295966,1748169038277,-316.0,0.00016,2]
[362295967,1748169038286,-316.0,0.00016,2]
[362295968,1748169038294,-316.0,0.00016,2]
[362295969,1748169038302,-316.0,0.00016,2]
[362295970,1748169038310,-316.0,0.00016,2]
[362295971,1748169038318,-316.0,0.00016,2]
[362295972,1748169038327,-316.0,0.00016,2]
[362295973,1748169038335,-316.0,0.00016,2]
[362295974,1748169038343,-316.0,0.00016,2]
[362295975,1748169038352,-316.0,0.00016,2]
[362295976,1748169038360,-316.0,0.00016,2]
[362295977,1748169038368,-316.0,0.00016,2]
[362295978,1748169038376,-316.0,0.00016,2]
[362295979,1748169038385,-316.0,0.00016,2]
[362295980,1748169038394,-316.0,0.00016,2]
[362295981,1748169038402,-316.0,0.00016,2]
[362295982,1748169038410,-316.0,0.00016,2]
[362295983,1748169038418,-316.0,0.00016,2]
[362295984,1748169038427,-316.0,0.00016,2]
[362295985,1748169038436,-316.0,0.00016,2]
[362295986,1748169038449,-316.0,0.00016,2]
[362295987,1748169038457,-316.0,0.00016,2]
[362295988,1748169038465,-316.0,0.00016,2]
[362295989,1748169038474,-316.0,0.00016,2]
[362295990,1748169038484,-316.0,0.00016,2]
[362295991,1748169038494,-316.0,0.00016,2]
[362295992,1748169038504,-316.0,0.00016,2]
[362295993,1748169038514,-64.2571862,0.00016,2]
[362295995,1748169040176,-580.37411691,0.00015742,2]
[362295996,1748169040186,-368.07989697,0.00016,2]
[362295997,1748169040195,-316.0,0.00016,2]
[362295998,1748169040205,-168.0,0.00016,2]
[362295999,1748169040215,-27.74805615,0.00016,2]
[362296000,1748169040226,-140.25194385,0.00016,2]
[362296001,1748169040236,-168.0,0.00016,2]
[362296002,1748169040245,-168.0,0.00016,2]
[362296003,1748169040254,-168.0,0.00016,2]
[362296004,1748169040264,-168.0,0.00016,2]
[362296005,1748169040273,-168.0,0.00016,2]
[362296006,1748169040282,-171.26053973,0.00016,2]